[Event "Hull 4NCL GM Tournament"]
[Site "Hull University, Hull, UK"]
[Date "2021.10.31"]
[Round "9.2"]
[White "Royal, Shreyas"]
[Black "Czopor, Maciej"]
[Result "0-1"]
[TimeControl "90+30"]
[WhiteElo "2226"]
[BlackElo "2411"]

1. d4 {[%clk 01:30:57]} {[%emt 00:00:03]} Nf6 {[%clk 01:30:55]} {[%emt
00:00:05]} 2. c4 {[%clk 01:31:22]} {[%emt 00:00:04]} e6 {[%clk 01:31:23]}
{[%emt 00:00:02]} 3. Nf3 {[%clk 01:31:46]} {[%emt 00:00:05]} b6 {[%clk
01:31:50]} {[%emt 00:00:04]} 4. g3 {[%clk 01:32:11]} {[%emt 00:00:05]} Bb7
{[%clk 01:32:15]} {[%emt 00:00:05]} 5. Bg2 {[%clk 01:32:37]} {[%emt 00:00:04]}
Be7 {[%clk 01:32:39]} {[%emt 00:00:06]} 6. O-O {[%clk 01:32:32]} {[%emt
00:00:35]} O-O {[%clk 01:33:04]} {[%emt 00:00:05]} 7. Nc3 {[%clk 01:32:35]}
{[%emt 00:00:28]} Ne4 {[%clk 01:33:29]} {[%emt 00:00:05]} 8. Bd2 {[%clk
01:32:46]} {[%emt 00:00:19]} d5 {[%clk 01:33:48]} {[%emt 00:00:11]} 9. cxd5
{[%clk 01:30:51]} {[%emt 00:02:25]} exd5 {[%clk 01:34:06]} {[%emt 00:00:12]} 10.
Bf4 {[%clk 01:26:24]} {[%emt 00:04:56]} Nd7 {[%clk 01:33:51]} {[%emt 00:00:45]}
11. Rc1 {[%clk 01:26:26]} {[%emt 00:00:28]} Nxc3 {[%clk 01:34:13]} {[%emt
00:00:08]} 12. Rxc3 {[%clk 01:25:18]} {[%emt 00:01:37]} c5 {[%clk 01:34:36]}
{[%emt 00:00:07]} 13. Qa4 {[%clk 01:20:34]} {[%emt 00:05:15]} cxd4 {[%clk
01:21:22]} {[%emt 00:13:43]} 14. Nxd4 {[%clk 01:20:41]} {[%emt 00:00:22]} Nc5
{[%clk 01:21:03]} {[%emt 00:00:50]} 15. Qc2 {[%clk 01:20:49]} {[%emt 00:00:21]}
Bf6 {[%clk 01:20:03]} {[%emt 00:01:32]} 16. Rd1 {[%clk 01:20:57]} {[%emt
00:00:22]} a5 {[%clk 01:06:57]} {[%emt 00:13:36]} 17. e4 {[%clk 01:09:11]}
{[%emt 00:12:16]} Bxd4 {[%clk 01:03:09]} {[%emt 00:04:18]} 18. Rxd4 {[%clk
01:09:26]} {[%emt 00:00:14]} Ne6 {[%clk 01:03:32]} {[%emt 00:00:07]} 19. Rd1
{[%clk 01:09:37]} {[%emt 00:00:20]} d4 {[%clk 00:59:53]} {[%emt 00:04:08]} 20.
Be5 {[%clk 01:02:04]} {[%emt 00:08:03]} Re8 {[%clk 00:51:00]} {[%emt 00:09:23]}
21. Qa4 {[%clk 00:46:00]} {[%emt 00:16:34]} dxc3 {[%clk 00:45:49]} {[%emt
00:05:41]} 22. Rxd8 {[%clk 00:46:24]} {[%emt 00:00:06]} Raxd8 {[%clk 00:46:13]}
{[%emt 00:00:06]} 23. Bxc3 {[%clk 00:46:42]} {[%emt 00:00:12]} Nc5 {[%clk
00:46:36]} {[%emt 00:00:07]} 24. Qc2 {[%clk 00:47:01]} {[%emt 00:00:11]} Bxe4
{[%clk 00:46:19]} {[%emt 00:00:47]} 25. Bxe4 {[%clk 00:47:12]} {[%emt
00:00:19]} Nxe4 {[%clk 00:46:41]} {[%emt 00:00:08]} 26. Qb3 {[%clk 00:46:22]}
{[%emt 00:01:20]} Re6 {[%clk 00:43:13]} {[%emt 00:03:58]} 27. Qc4 {[%clk
00:44:42]} {[%emt 00:02:10]} Nxc3 {[%clk 00:39:24]} {[%emt 00:04:19]} 28. Qxc3
{[%clk 00:44:21]} {[%emt 00:00:51]} h6 {[%clk 00:39:10]} {[%emt 00:00:44]} 29.
b4 {[%clk 00:39:29]} {[%emt 00:05:22]} axb4 {[%clk 00:37:13]} {[%emt 00:02:27]}
30. Qxb4 {[%clk 00:39:53]} {[%emt 00:00:06]} g6 {[%clk 00:33:57]} {[%emt
00:03:46]} 31. h4 {[%clk 00:38:43]} {[%emt 00:01:40]} h5 {[%clk 00:33:49]}
{[%emt 00:00:37]} 32. a4 {[%clk 00:38:09]} {[%emt 00:01:05]} Rd5 {[%clk
00:33:56]} {[%emt 00:00:23]} 33. Kg2 {[%clk 00:37:08]} {[%emt 00:01:31]} Rf5
{[%clk 00:34:01]} {[%emt 00:00:25]} 34. Qc4 {[%clk 00:36:35]} {[%emt 00:01:02]}
Kh7 {[%clk 00:32:51]} {[%emt 00:01:40]} 35. Qd3 {[%clk 00:34:50]} {[%emt
00:02:15]} Ref6 {[%clk 00:31:58]} {[%emt 00:01:23]} 36. f4 {[%clk 00:34:22]}
{[%emt 00:00:58]} Re6 {[%clk 00:31:30]} {[%emt 00:00:59]} 37. Qd7 {[%clk
00:31:54]} {[%emt 00:02:59]} Re2+ {[%clk 00:31:06]} {[%emt 00:00:53]} 38. Kf3
{[%clk 00:32:12]} {[%emt 00:00:12]} Ra2 {[%clk 00:30:35]} {[%emt 00:01:02]} 39.
Ke3 {[%clk 00:30:45]} {[%emt 00:01:57]} Ra3+ {[%clk 00:28:41]} {[%emt
00:02:24]} 40. Kf2 {[%clk 00:31:08]} {[%emt 00:00:06]} Rc3 {[%clk 00:27:12]}
{[%emt 00:01:59]} 41. Qb7 {[%clk 00:27:04]} {[%emt 00:04:35]} Rc4 {[%clk
00:27:04]} {[%emt 00:00:37]} 42. Qxb6 {[%clk 00:27:19]} {[%emt 00:00:16]} Rxa4
{[%clk 00:27:30]} {[%emt 00:00:03]} 43. Qc7 {[%clk 00:27:14]} {[%emt 00:00:35]}
Ra8 {[%clk 00:27:36]} {[%emt 00:00:24]} 44. Kg2 {[%clk 00:27:09]} {[%emt
00:00:35]} Kg8 {[%clk 00:26:22]} {[%emt 00:01:44]} 45. Kh3 {[%clk 00:26:16]}
{[%emt 00:01:24]} Ra3 {[%clk 00:25:55]} {[%emt 00:00:57]} 46. Qb8+ {[%clk
00:26:08]} {[%emt 00:00:38]} Kh7 {[%clk 00:26:19]} {[%emt 00:00:05]} 47. Qc7
{[%clk 00:25:09]} {[%emt 00:01:29]} Rb3 {[%clk 00:24:11]} {[%emt 00:02:38]} 48.
Qc4 {[%clk 00:24:33]} {[%emt 00:01:07]} Rbb5 {[%clk 00:23:56]} {[%emt
00:00:45]} 49. Qc7 {[%clk 00:24:40]} {[%emt 00:00:22]} Rbc5 {[%clk 00:24:20]}
{[%emt 00:00:06]} 50. Qd7 {[%clk 00:24:49]} {[%emt 00:00:22]} Rc3 {[%clk
00:24:17]} {[%emt 00:00:33]} 51. Kg2 {[%clk 00:25:10]} {[%emt 00:00:09]} Re3
{[%clk 00:24:27]} {[%emt 00:00:20]} 52. Kf2 {[%clk 00:24:54]} {[%emt 00:00:45]}
Re6 {[%clk 00:24:50]} {[%emt 00:00:07]} 53. Kf3 {[%clk 00:24:58]} {[%emt
00:00:26]} Kg7 {[%clk 00:24:53]} {[%emt 00:00:27]} 54. Qd4+ {[%clk 00:25:20]}
{[%emt 00:00:08]} Kf8 {[%clk 00:24:05]} {[%emt 00:01:18]} 55. Qh8+ {[%clk
00:24:30]} {[%emt 00:01:20]} Ke7 {[%clk 00:24:28]} {[%emt 00:00:08]} 56. Qb8
{[%clk 00:24:38]} {[%emt 00:00:22]} Rd6 {[%clk 00:23:30]} {[%emt 00:01:28]} 57.
Qb7+ {[%clk 00:24:59]} {[%emt 00:00:09]} Rd7 {[%clk 00:23:44]} {[%emt
00:00:16]} 58. Qb4+ {[%clk 00:25:25]} {[%emt 00:00:05]} Ke8 {[%clk 00:24:04]}
{[%emt 00:00:09]} 59. Qb8+ {[%clk 00:22:55]} {[%emt 00:03:00]} Rd8 {[%clk
00:24:31]} {[%emt 00:00:04]} 60. Qb2 {[%clk 00:21:39]} {[%emt 00:01:45]} Rd3+
{[%clk 00:24:04]} {[%emt 00:00:56]} 61. Kg2 {[%clk 00:22:04]} {[%emt 00:00:05]}
Rfd5 {[%clk 00:24:03]} {[%emt 00:00:31]} 62. Qg7 {[%clk 00:21:53]} {[%emt
00:00:40]} Rb3 {[%clk 00:23:20]} {[%emt 00:01:14]} 63. Kh2 {[%clk 00:20:29]}
{[%emt 00:01:54]} Rd2+ {[%clk 00:22:24]} {[%emt 00:01:26]} 64. Kh3 {[%clk
00:20:56]} {[%emt 00:00:03]} Rbb2 {[%clk 00:22:24]} {[%emt 00:00:30]} 65. Qe5+
{[%clk 00:21:20]} {[%emt 00:00:05]} Kd7 {[%clk 00:22:46]} {[%emt 00:00:08]} 0-1

[Event "Hull 4NCL GM Tournament"]
[Site "Hull University, Hull, UK"]
[Date "2021.10.31"]
[Round "9.3"]
[White "Fodor, Tamas Jr."]
[Black "Davies, Nigel R"]
[Result "1/2-1/2"]
[TimeControl "90+30"]
[WhiteElo "2524"]
[BlackElo "2475"]

1. d4 {[%clk 01:30:55]} {[%emt 00:00:03]} Nf6 {[%clk 01:30:53]} {[%emt
00:00:08]} 2. Nf3 {[%clk 01:31:20]} {[%emt 00:00:05]} d5 {[%clk 01:31:16]}
{[%emt 00:00:07]} 3. Bf4 {[%clk 01:31:28]} {[%emt 00:00:22]} c5 {[%clk
01:31:36]} {[%emt 00:00:09]} 4. e3 {[%clk 01:31:08]} {[%emt 00:00:51]} cxd4
{[%clk 01:31:44]} {[%emt 00:00:22]} 5. exd4 {[%clk 01:31:30]} {[%emt 00:00:07]}
Nc6 {[%clk 01:32:07]} {[%emt 00:00:07]} 6. c3 {[%clk 01:30:20]} {[%emt
00:01:40]} g6 {[%clk 01:27:37]} {[%emt 00:05:00]} 7. Bd3 {[%clk 01:28:40]}
{[%emt 00:02:09]} Bg7 {[%clk 01:27:59]} {[%emt 00:00:08]} 8. O-O {[%clk
01:28:29]} {[%emt 00:00:41]} O-O {[%clk 01:28:11]} {[%emt 00:00:18]} 9. h3
{[%clk 01:25:17]} {[%emt 00:03:42]} Bf5 {[%clk 01:28:30]} {[%emt 00:00:12]} 10.
Bxf5 {[%clk 01:22:38]} {[%emt 00:03:09]} gxf5 {[%clk 01:28:52]} {[%emt
00:00:06]} 11. Ne1 {[%clk 01:22:39]} {[%emt 00:00:30]} e6 {[%clk 01:26:19]}
{[%emt 00:03:03]} 12. Nd3 {[%clk 01:21:56]} {[%emt 00:01:14]} Ne7 {[%clk
01:25:57]} {[%emt 00:00:52]} 13. Nd2 {[%clk 01:18:43]} {[%emt 00:03:42]} Ng6
{[%clk 01:26:15]} {[%emt 00:00:12]} 14. Bg5 {[%clk 01:17:51]} {[%emt 00:01:23]}
Qc7 {[%clk 01:24:19]} {[%emt 00:02:26]} 15. Bxf6 {[%clk 01:14:04]} {[%emt
00:04:18]} Bxf6 {[%clk 01:24:41]} {[%emt 00:00:07]} 16. f4 {[%clk 01:14:30]}
{[%emt 00:00:05]} Kh8 {[%clk 01:24:41]} {[%emt 00:00:30]} 17. Qh5 {[%clk
01:08:31]} {[%emt 00:06:28]} Rg8 {[%clk 01:24:55]} {[%emt 00:00:17]} 18. Kh1
{[%clk 01:07:14]} {[%emt 00:01:47]} Rg7 {[%clk 01:23:23]} {[%emt 00:02:02]} 19.
Rf2 {[%clk 01:02:05]} {[%emt 00:05:39]} Rag8 {[%clk 01:16:26]} {[%emt
00:07:26]} 20. Rg1 {[%clk 01:01:58]} {[%emt 00:00:37]} Ne7 {[%clk 01:15:33]}
{[%emt 00:01:24]} 21. g4 {[%clk 00:58:02]} {[%emt 00:04:26]} Nc8 {[%clk
01:13:16]} {[%emt 00:02:46]} 22. Rfg2 {[%clk 00:55:18]} {[%emt 00:03:14]} Nd6
{[%clk 01:13:21]} {[%emt 00:00:26]} 23. g5 {[%clk 00:53:56]} {[%emt 00:01:52]}
Bd8 {[%clk 01:13:35]} {[%emt 00:00:16]} 24. Ne5 {[%clk 00:53:20]} {[%emt
00:01:07]} Qe7 {[%clk 01:07:34]} {[%emt 00:06:30]} 25. g6 {[%clk 00:47:54]}
{[%emt 00:05:56]} fxg6 {[%clk 01:07:44]} {[%emt 00:00:20]} 26. Nxg6+ {[%clk
00:36:53]} {[%emt 00:11:32]} Rxg6 {[%clk 01:08:00]} {[%emt 00:00:13]} 27. Rxg6
{[%clk 00:37:20]} {[%emt 00:00:03]} Rxg6 {[%clk 01:08:23]} {[%emt 00:00:08]} 28.
Rxg6 {[%clk 00:37:46]} {[%emt 00:00:04]} Qf7 {[%clk 01:06:57]} {[%emt
00:01:56]} 29. Qh6 {[%clk 00:38:07]} {[%emt 00:00:10]} Qxg6 {[%clk 01:07:15]}
{[%emt 00:00:11]} 30. Qf8+ {[%clk 00:38:35]} {[%emt 00:00:03]} Qg8 {[%clk
01:07:36]} {[%emt 00:00:09]} 31. Qxd6 {[%clk 00:39:02]} {[%emt 00:00:03]} Bf6
{[%clk 01:04:27]} {[%emt 00:03:39]} 32. Nf3 {[%clk 00:38:15]} {[%emt 00:01:16]}
Kg7 {[%clk 01:02:05]} {[%emt 00:02:52]} 33. Kh2 {[%clk 00:36:14]} {[%emt
00:02:30]} h6 {[%clk 01:00:54]} {[%emt 00:01:41]} 34. Qc7+ {[%clk 00:30:54]}
{[%emt 00:05:50]} Qf7 {[%clk 01:01:16]} {[%emt 00:00:09]} 35. Qb8 {[%clk
00:31:03]} {[%emt 00:00:21]} a6 {[%clk 01:01:23]} {[%emt 00:00:24]} 36. Qc8
{[%clk 00:31:15]} {[%emt 00:00:18]} Qe7 {[%clk 01:00:44]} {[%emt 00:01:09]} 37.
Kg3 {[%clk 00:31:00]} {[%emt 00:00:43]} Kf7 {[%clk 00:58:13]} {[%emt 00:03:02]}
38. Kf2 {[%clk 00:31:24]} {[%emt 00:00:06]} Kg7 {[%clk 00:58:23]} {[%emt
00:00:20]} 39. Ke3 {[%clk 00:31:48]} {[%emt 00:00:07]} Kf7 {[%clk 00:58:45]}
{[%emt 00:00:08]} 40. Ne1 {[%clk 00:31:12]} {[%emt 00:01:06]} a5 {[%clk
00:58:07]} {[%emt 00:01:09]} 41. Nd3 {[%clk 00:30:42]} {[%emt 00:00:59]} b6
{[%clk 00:58:30]} {[%emt 00:00:07]} 42. Qb8 {[%clk 00:30:31]} {[%emt 00:00:40]}
Qd8 {[%clk 00:57:51]} {[%emt 00:01:09]} 43. Qb7+ {[%clk 00:30:52]} {[%emt
00:00:09]} Kg6 {[%clk 00:57:53]} {[%emt 00:00:28]} 44. Qc6 {[%clk 00:29:09]}
{[%emt 00:02:14]} Kf7 {[%clk 00:58:11]} {[%emt 00:00:13]} 45. Qb7+ {[%clk
00:27:40]} {[%emt 00:01:59]} Kg6 {[%clk 00:57:14]} {[%emt 00:01:27]} 46. a4
{[%clk 00:28:03]} {[%emt 00:00:07]} Bg7 {[%clk 00:53:01]} {[%emt 00:04:43]} 47.
Ne1 {[%clk 00:25:55]} {[%emt 00:02:38]} Bf8 {[%clk 00:52:58]} {[%emt 00:00:32]}
48. Nf3 {[%clk 00:24:23]} {[%emt 00:02:02]} Bd6 {[%clk 00:53:16]} {[%emt
00:00:12]} 49. Qc6 {[%clk 00:24:08]} {[%emt 00:00:45]} Kf7 {[%clk 00:52:27]}
{[%emt 00:01:19]} 50. Ne5+ {[%clk 00:23:58]} {[%emt 00:00:40]} Bxe5 {[%clk
00:52:40]} {[%emt 00:00:17]} 51. dxe5 {[%clk 00:24:21]} {[%emt 00:00:08]} Qh4
{[%clk 00:52:05]} {[%emt 00:01:04]} 52. Qd7+ {[%clk 00:23:10]} {[%emt
00:01:41]} Kf8 {[%clk 00:49:25]} {[%emt 00:03:09]} 53. Qd6+ {[%clk 00:22:09]}
{[%emt 00:01:31]} Kf7 {[%clk 00:48:41]} {[%emt 00:01:14]} 54. Qd7+ {[%clk
00:21:25]} {[%emt 00:01:15]} 1/2-1/2

[Event "Hull 4NCL GM Tournament"]
[Site "Hull University, Hull, UK"]
[Date "2021.10.31"]
[Round "9.5"]
[White "Clarke, Brandon G I"]
[Black "Murphy, Conor E"]
[Result "1/2-1/2"]
[TimeControl "90+30"]
[WhiteElo "2442"]
[BlackElo "2428"]

1. e4 {[%clk 01:30:56]} {[%emt 00:00:02]} e5 {[%clk 01:30:56]} {[%emt
00:00:05]} 2. Nf3 {[%clk 01:31:22]} {[%emt 00:00:04]} Nc6 {[%clk 01:31:21]}
{[%emt 00:00:05]} 3. Bb5 {[%clk 01:31:46]} {[%emt 00:00:06]} Nf6 {[%clk
01:31:30]} {[%emt 00:00:20]} 4. O-O {[%clk 01:31:39]} {[%emt 00:00:36]} Nxe4
{[%clk 01:31:54]} {[%emt 00:00:07]} 5. d4 {[%clk 01:31:38]} {[%emt 00:00:31]}
Nd6 {[%clk 01:32:15]} {[%emt 00:00:09]} 6. Bxc6 {[%clk 01:31:43]} {[%emt
00:00:25]} dxc6 {[%clk 01:32:38]} {[%emt 00:00:07]} 7. dxe5 {[%clk 01:32:08]}
{[%emt 00:00:05]} Nf5 {[%clk 01:33:00]} {[%emt 00:00:07]} 8. Qxd8+ {[%clk
01:32:33]} {[%emt 00:00:06]} Kxd8 {[%clk 01:33:25]} {[%emt 00:00:04]} 9. h3
{[%clk 01:32:54]} {[%emt 00:00:09]} Be7 {[%clk 01:31:55]} {[%emt 00:02:00]} 10.
Nc3 {[%clk 01:33:08]} {[%emt 00:00:17]} Nh4 {[%clk 01:30:44]} {[%emt 00:01:41]}
11. Nd4 {[%clk 01:32:30]} {[%emt 00:01:08]} Nf5 {[%clk 01:29:53]} {[%emt
00:01:21]} 12. Nde2 {[%clk 01:32:15]} {[%emt 00:00:45]} h5 {[%clk 01:27:35]}
{[%emt 00:02:48]} 13. Ne4 {[%clk 01:32:21]} {[%emt 00:00:23]} a5 {[%clk
01:19:04]} {[%emt 00:09:01]} 14. a4 {[%clk 01:32:30]} {[%emt 00:00:21]} b6
{[%clk 01:19:02]} {[%emt 00:00:34]} 15. b3 {[%clk 01:31:42]} {[%emt 00:01:17]}
Bd7 {[%clk 01:16:45]} {[%emt 00:02:47]} 16. Re1 {[%clk 01:29:58]} {[%emt
00:02:14]} Kc8 {[%clk 01:12:03]} {[%emt 00:05:12]} 17. Bg5 {[%clk 01:27:05]}
{[%emt 00:03:22]} Re8 {[%clk 00:58:44]} {[%emt 00:13:50]} 18. Nf4 {[%clk
01:09:51]} {[%emt 00:17:44]} Bf8 {[%clk 00:53:22]} {[%emt 00:05:53]} 19. Nxh5
{[%clk 01:02:58]} {[%emt 00:07:23]} Rxe5 {[%clk 00:49:00]} {[%emt 00:04:51]} 20.
Bf4 {[%clk 01:02:50]} {[%emt 00:00:39]} Rd5 {[%clk 00:45:57]} {[%emt 00:03:33]}
21. Rad1 {[%clk 00:51:38]} {[%emt 00:11:42]} Nd4 {[%clk 00:41:31]} {[%emt
00:04:55]} 22. c4 {[%clk 00:50:01]} {[%emt 00:02:08]} Ne2+ {[%clk 00:37:21]}
{[%emt 00:04:40]} 23. Kf1 {[%clk 00:50:26]} {[%emt 00:00:06]} Rxd1 {[%clk
00:35:52]} {[%emt 00:01:59]} 24. Rxd1 {[%clk 00:50:54]} {[%emt 00:00:02]} Nxf4
{[%clk 00:34:54]} {[%emt 00:01:28]} 25. Nxf4 {[%clk 00:51:22]} {[%emt
00:00:02]} b5 {[%clk 00:32:08]} {[%emt 00:03:16]} 26. cxb5 {[%clk 00:37:23]}
{[%emt 00:14:29]} cxb5 {[%clk 00:31:52]} {[%emt 00:00:46]} 27. axb5 {[%clk
00:36:02]} {[%emt 00:01:51]} a4 {[%clk 00:28:16]} {[%emt 00:04:06]} 28. bxa4
{[%clk 00:32:44]} {[%emt 00:03:48]} Rxa4 {[%clk 00:27:44]} {[%emt 00:01:03]} 29.
f3 {[%clk 00:32:57]} {[%emt 00:00:17]} Bxb5+ {[%clk 00:17:00]} {[%emt
00:11:14]} 30. Kf2 {[%clk 00:31:47]} {[%emt 00:01:39]} Bc6 {[%clk 00:15:55]}
{[%emt 00:01:36]} 31. Nd5 {[%clk 00:30:05]} {[%emt 00:02:12]} Ra2+ {[%clk
00:14:56]} {[%emt 00:01:30]} 32. Kg1 {[%clk 00:26:37]} {[%emt 00:03:57]} f5
{[%clk 00:13:36]} {[%emt 00:01:50]} 33. Ng5 {[%clk 00:26:41]} {[%emt 00:00:26]}
Bc5+ {[%clk 00:12:59]} {[%emt 00:01:07]} 34. Kh1 {[%clk 00:24:16]} {[%emt
00:02:55]} Rc2 {[%clk 00:05:46]} {[%emt 00:07:44]} 35. Ne6 {[%clk 00:23:05]}
{[%emt 00:01:41]} Bxd5 {[%clk 00:05:20]} {[%emt 00:00:55]} 36. Rxd5 {[%clk
00:23:31]} {[%emt 00:00:04]} Bd6 {[%clk 00:04:31]} {[%emt 00:01:20]} 37. g4
{[%clk 00:22:42]} {[%emt 00:01:19]} Rc1+ {[%clk 00:02:50]} {[%emt 00:02:11]}
1/2-1/2